bitfinex-derivatives/quotes_BTCF0:USTF0_20250930
["timestamp","ask_amount","ask_price","bid_price","bid_amount"]
[1759240535605,1.41332527,113310.0,113300.0,0.1243623]
[1759240535806,1.41312527,113310.0,113300.0,0.1243623]
[1759240536008,1.41312527,113310.0,113300.0,0.4851623]
[1759240536218,0.63517021,113320.0,113310.0,0.1243545]
[1759240536509,1.02979954,113320.0,113310.0,0.4851545]
[1759240536712,1.48376481,113320.0,113310.0,0.4851545]
[1759240537017,0.1099145,113310.0,113300.0,0.03614]
[1759240537218,0.56387977,113310.0,113300.0,0.03614]
[1759240537513,0.56387977,113310.0,113290.0,0.37472]
[1759240537514,0.0882222,113300.0,113290.0,0.37472]
[1759240537711,0.10993,113290.0,113280.0,0.50253629]
[1759240537913,0.0217,113290.0,113280.0,0.50253629]
[1759240538415,1.41289307,113300.0,113290.0,0.1243701]
[1759240539209,1.77369307,113300.0,113290.0,0.1021501]
[1759240539914,1.77369307,113300.0,113280.0,0.39408279]
[1759240539915,0.10993,113290.0,113280.0,0.39408279]
[1759240540217,0.57312527,113290.0,113280.0,0.002]
[1759240540411,0.93392527,113290.0,113280.0,0.002]
[1759240540612,0.1099456,113270.0,113250.0,0.5258613]
[1759240540811,0.0217,113260.0,113250.0,0.4852012]
[1759240541114,1.13547087,113270.0,113260.0,0.1243934]
[1759240541322,1.20514563,113270.0,113260.0,0.03614]
[1759240541708,1.20314563,113270.0,113260.0,0.03654]
[1759240542105,0.06967476,113270.0,113260.0,0.4855934]
[1759240542311,0.9394456,113270.0,113260.0,0.4855934]
[1759240542516,0.9611456,113270.0,113260.0,0.39934]
[1759240542818,1.41511087,113270.0,113260.0,0.03854]
[1759240543009,1.41511087,113270.0,113260.0,0.39894]
[1759240543209,1.41511087,113270.0,113260.0,0.0024]
[1759240543210,1.3219456,113270.0,113260.0,0.0024]
[1759240543516,1.77763087,113270.0,113250.0,0.4629796]
[1759240543711,0.47592527,113260.0,113250.0,0.4866996]
[1759240543912,0.1102134,113260.0,113250.0,0.4866996]
[1759240544214,0.56417867,113260.0,113250.0,0.39844]
[1759240544514,0.56417867,113260.0,113250.0,0.4867012]
[1759240544716,0.02196,113260.0,113250.0,0.4867012]
[1759240544910,0.47592527,113270.0,113260.0,0.1247634]
[1759240545103,1.40222339,113270.0,113260.0,0.4855634]
[1759240545308,0.07153812,113270.0,113260.0,0.4855634]
[1759240545515,0.55123477,113280.0,113260.0,0.4855634]
[1759240545713,1.42779477,113280.0,113270.0,0.03651]
[1759240546118,1.42767477,113280.0,113270.0,0.03651]
[1759240546426,0.48495697,113280.0,113270.0,0.1247556]
[1759240546623,0.8631117,113280.0,113270.0,0.4855556]
[1759240546917,0.85408,113280.0,113270.0,0.4855556]
[1759240547111,0.9642752,113290.0,113280.0,0.1247478]
[1759240547309,0.1101952,113290.0,113280.0,0.1247478]
[1759240547512,1.41800047,113290.0,113280.0,0.1247478]
[1759240547711,1.42665674,113290.0,113270.0,0.4626289]
[1759240547911,0.45396527,113280.0,113270.0,0.4855489]
[1759240548120,0.54220307,113280.0,113270.0,0.4859489]
[1759240548319,0.45396527,113280.0,113270.0,0.4859489]
[1759240548612,0.11246732,113290.0,113280.0,0.1247478]
[1759240548810,0.96570732,113290.0,113280.0,0.4855478]
[1759240549012,1.05893732,113290.0,113280.0,0.4855478]
[1759240549208,1.51290259,113290.0,113280.0,0.4855478]
[1759240549412,1.42467259,113290.0,113280.0,0.4855478]
[1759240549613,0.64166259,113290.0,113280.0,0.4855478]
[1759240550017,0.06885105,113290.0,113280.0,0.8855478]
[1759240550213,0.97019852,113300.0,113290.0,0.12474]
[1759240550420,0.99215852,113300.0,113290.0,0.48554]
[1759240550618,0.12147941,113300.0,113290.0,0.48554]
[1759240550819,0.95215941,113300.0,113290.0,0.48554]
[1759240551230,0.55348468,113300.0,113290.0,0.48554]
[1759240551419,0.54469038,113300.0,113290.0,0.48554]
[1759240551716,0.07026319,113300.0,113290.0,0.88554]
[1759240551917,0.016,113300.0,113290.0,0.88554]
[1759240552319,0.016,113300.0,113290.0,1.33950527]
[1759240552518,0.016,113300.0,113290.0,1.40238537]
[1759240552721,0.016,113300.0,113290.0,2.25450537]
[1759240552918,0.56452847,113330.0,113320.0,0.1247167]
[1759240553117,0.90348847,113330.0,113320.0,0.1247167]
[1759240553319,0.56412847,113330.0,113320.0,0.03651]
[1759240553514,0.56452847,113330.0,113320.0,0.39731]
[1759240553720,0.07086537,113330.0,113320.0,0.4855167]
[1759240553921,0.0004,113330.0,113320.0,0.4855167]
[1759240554229,0.56491767,113340.0,113330.0,0.1247089]
[1759240554524,0.56491767,113340.0,113330.0,0.4855089]
[1759240555119,0.57388774,113340.0,113330.0,0.4855089]
[1759240555420,0.00977007,113340.0,113330.0,0.4855089]
[1759240555629,0.69745936,113350.0,113340.0,0.1247011]
[1759240555817,0.72021936,113350.0,113340.0,0.39731]
[1759240556124,1.18236796,113350.0,113340.0,0.39731]
[1759240556325,1.18276796,113350.0,113340.0,0.4855011]
[1759240556625,1.44628796,113350.0,113340.0,0.4855011]
[1759240556823,0.59404796,113350.0,113340.0,0.4855011]
[1759240557025,1.44596796,113350.0,113340.0,0.4855011]
[1759240557218,1.44596796,113350.0,113340.0,0.03651]
[1759240557416,1.51622837,113350.0,113340.0,0.01359]
[1759240557624,1.51642837,113350.0,113340.0,0.03651]
[1759240557825,0.0881911,113340.0,113330.0,0.4625886]
[1759240558128,0.56411637,113340.0,113330.0,0.4855089]
[1759240558625,0.45396527,113340.0,113330.0,0.4855089]
[1759240558819,1.53158707,113350.0,113340.0,0.1247011]
[1759240559125,1.51658707,113350.0,113340.0,0.4855011]
[1759240559318,0.07964374,113350.0,113340.0,0.4855011]
[1759240559620,0.1101278,113370.0,113360.0,0.1246856]
[1759240559819,0.56409307,113370.0,113360.0,0.1246856]
[1759240560030,0.54213307,113370.0,113360.0,0.1246856]
[1759240560318,0.03233549,113380.0,113370.0,0.1246778]
[1759240560514,0.94877549,113380.0,113370.0,0.4854778]
[1759240560727,0.94917549,113380.0,113370.0,0.4854778]
[1759240561017,1.42510076,113380.0,113370.0,0.03651]
[1759240561218,0.1211278,113370.0,113360.0,0.4854855]
[1759240561423,0.011,113370.0,113360.0,0.4854855]
[1759240561621,1.31498076,113380.0,113360.0,0.4854855]
[1759240561822,0.0004,113380.0,113370.0,0.4854778]
[1759240562020,0.84566026,113390.0,113380.0,0.12467]
[1759240562230,0.07899761,113390.0,113380.0,0.48547]
[1759240562526,0.16634991,113390.0,113380.0,0.39731]
[1759240562726,0.64267518,113390.0,113380.0,0.48547]
[1759240562922,0.64267518,113390.0,113380.0,0.39731]
[1759240563425,0.53256288,113390.0,113380.0,0.48547]
[1759240563725,0.19974981,113390.0,113380.0,0.48547]
[1759240564124,0.19934981,113390.0,113380.0,0.48547]
[1759240564323,0.0004,113390.0,113380.0,0.88547]
[1759240564519,0.013,113390.0,113380.0,0.88547]
[1759240564720,0.1015522,113390.0,113380.0,0.39731]
[1759240564922,0.57747747,113390.0,113380.0,0.39731]
[1759240565122,0.57747747,113390.0,113380.0,0.48547]
[1759240565317,0.08384011,113390.0,113380.0,0.88547]
[1759240565522,0.1100843,113430.0,113420.0,0.03651]
[1759240565726,0.1100843,113430.0,113420.0,0.39731]
[1759240565923,0.56404957,113430.0,113420.0,0.03651]
[1759240566124,1.33353489,113430.0,113420.0,0.17]
[1759240566320,1.33393489,113430.0,113420.0,0.17]
[1759240566520,0.1100967,113410.0,113400.0,0.03651]
[1759240566726,0.56406197,113410.0,113400.0,0.03651]
[1759240566924,0.92486197,113410.0,113400.0,0.03651]
[1759240567225,0.56406197,113410.0,113400.0,0.2946544]
[1759240567632,0.56406197,113410.0,113400.0,0.20651]
[1759240567831,0.63544128,113410.0,113400.0,0.6554544]
[1759240568127,0.07137931,113410.0,113400.0,0.6554544]
[1759240568428,0.93393899,113430.0,113420.0,0.1017189]
[1759240568733,1.42549899,113430.0,113420.0,0.03651]
[1759240569226,1.42549899,113430.0,113420.0,0.1246389]
[1759240569425,1.42529899,113430.0,113420.0,0.1246389]
[1759240569623,1.42489899,113430.0,113420.0,0.03651]
[1759240569820,1.78609899,113430.0,113420.0,0.03651]
[1759240570021,0.1100889,113420.0,113410.0,0.1246457]
[1759240570327,0.1100889,113420.0,113410.0,0.4854457]
[1759240570328,0.02196,113420.0,113410.0,0.4854457]
[1759240570532,0.99133412,113430.0,113420.0,0.1246389]
[1759240570825,1.80609939,113430.0,113420.0,0.01359]
[1759240571222,1.87688819,113430.0,113420.0,0.1017189]
[1759240571542,1.87688819,113430.0,113420.0,0.03651]
[1759240571826,1.06212352,113430.0,113420.0,0.1017189]
[1759240572033,0.55580259,113430.0,113420.0,0.1246389]
[1759240572233,0.64392369,113430.0,113420.0,0.4854389]
[1759240572421,0.0711888,113430.0,113420.0,0.4854389]
[1759240572625,0.0707888,113430.0,113420.0,0.4854389]
[1759240572928,0.0004,113430.0,113420.0,0.4854389]
[1759240573122,1.43795519,113440.0,113430.0,0.1227311]
[1759240573329,0.1112511,113430.0,113420.0,0.4838541]
[1759240573531,0.02313,113430.0,113420.0,0.4838541]
[1759240573836,1.35064039,113440.0,113430.0,0.1227311]
[1759240574033,0.02313,113440.0,113430.0,0.4835311]
[1759240574235,0.02353,113440.0,113430.0,0.4835311]
[1759240574428,0.0004,113440.0,113430.0,0.4835311]
[1759240574729,0.56560867,113440.0,113430.0,0.4835311]
[1759240575235,0.47749527,113440.0,113430.0,0.4835311]
[1759240575535,0.57464969,113440.0,113430.0,0.4835311]
[1759240575733,1.04665848,113440.0,113430.0,0.03461]
[1759240576033,0.1112511,113430.0,113420.0,0.1230516]
[1759240576229,0.56521637,113430.0,113420.0,0.1230516]
[1759240576824,0.47709527,113430.0,113420.0,0.4838516]
[1759240577535,0.66666118,113440.0,113430.0,0.1227311]
[1759240577834,0.08144981,113440.0,113430.0,0.4835311]
[1759240578026,0.08104981,113440.0,113430.0,0.4835311]
[1759240578233,0.0004,113440.0,113430.0,0.4835311]
[1759240578432,0.00916561,113440.0,113430.0,0.4835311]
[1759240578633,0.00876561,113440.0,113430.0,0.4835311]
[1759240578932,0.1112434,113440.0,113430.0,0.4835311]
[1759240579139,0.56560867,113440.0,113430.0,0.4835312]
[1759240579330,0.0004,113440.0,113430.0,0.4835312]
[1759240579531,1.46276025,113450.0,113440.0,0.1227234]
[1759240579727,0.07032898,113450.0,113440.0,0.1227234]
[1759240579934,0.07032898,113450.0,113440.0,0.4835234]
[1759240580241,0.0004,113450.0,113440.0,0.4835234]
[1759240580540,0.00924689,113450.0,113440.0,0.4835234]
[1759240580739,0.0004,113450.0,113440.0,0.4835234]
[1759240580941,0.1112293,113460.0,113450.0,0.1227156]
[1759240581141,0.1120293,113460.0,113450.0,0.39541]
[1759240581335,0.1120293,113460.0,113450.0,0.4835156]
[1759240581741,0.18381415,113460.0,113450.0,0.4835156]
[1759240581930,0.18381415,113460.0,113450.0,0.1227156]
[1759240582134,0.63777942,113460.0,113450.0,0.1227156]
[1759240582329,0.63777942,113460.0,113450.0,0.4835156]
[1759240582729,0.09571485,113460.0,113450.0,0.4835156]
[1759240582937,0.16068265,113460.0,113450.0,0.4835156]
[1759240583134,0.07258485,113460.0,113450.0,0.4835156]
[1759240583437,0.16068265,113460.0,113450.0,0.4835156]
[1759240583641,0.08958485,113460.0,113450.0,0.4835156]
[1759240583937,0.20081265,113460.0,113450.0,0.4835156]
[1759240584140,0.20001265,113460.0,113450.0,0.4835156]
[1759240584442,0.16929429,113460.0,113450.0,0.4835156]
[1759240584942,0.19242429,113460.0,113450.0,0.4835156]
[1759240585341,0.08119649,113460.0,113450.0,0.4835156]
[1759240585743,0.16929439,113460.0,113450.0,0.4835156]
[1759240586040,0.19248439,113460.0,113450.0,0.4835156]
[1759240586243,0.16929439,113460.0,113450.0,0.4835156]
[1759240586641,0.08119649,113460.0,113450.0,0.4835156]
[1759240587636,0.4720762,113480.0,113470.0,0.1240601]
[1759240587835,0.1112801,113470.0,113460.0,0.4848629]
[1759240588037,0.63201279,113470.0,113460.0,0.4848629]
[1759240588244,0.63241279,113470.0,113460.0,0.1240629]
[1759240588637,0.54432269,113470.0,113460.0,0.1240629]
[1759240589032,0.54432269,113470.0,113460.0,0.4848629]
[1759240589236,0.63241279,113470.0,113460.0,0.4848629]
[1759240589437,0.07237581,113470.0,113460.0,0.4848629]
[1759240590046,0.16046591,113470.0,113460.0,0.4848629]
[1759240590345,0.18365591,113470.0,113460.0,0.4848629]
[1759240590642,0.7043886,113470.0,113460.0,0.4848629]
[1759240591043,0.71308411,113470.0,113460.0,0.4848629]
[1759240591241,0.73308411,113470.0,113460.0,0.4848629]
[1759240591745,0.64499401,113470.0,113460.0,0.4848629]
[1759240591948,0.10107132,113470.0,113460.0,0.4848629]
[1759240592248,0.09237581,113470.0,113460.0,0.4848629]
[1759240592648,0.09197581,113470.0,113460.0,0.4848629]
[1759240592844,0.09237581,113470.0,113460.0,0.4848629]
[1759240593245,0.09237581,113470.0,113460.0,1.3311829]
[1759240593448,0.09237581,113470.0,113460.0,0.4848629]
[1759240593746,0.09237581,113470.0,113460.0,1.3325029]
[1759240594049,0.02,113470.0,113460.0,2.25323559]
[1759240594637,0.0204,113470.0,113460.0,1.40559559]
[1759240594843,0.56432269,113470.0,113460.0,0.4848629]
[1759240595043,0.63241269,113470.0,113460.0,0.5018629]
[1759240595246,0.63241269,113470.0,113460.0,1.3487829]
[1759240595543,0.63241269,113470.0,113460.0,1.3317829]
[1759240595747,0.54432269,113470.0,113460.0,1.3317829]
[1759240596047,0.0004,113470.0,113460.0,0.8848629]
[1759240596442,0.54432269,113470.0,113460.0,1.3312229]
[1759240596748,0.54432269,113470.0,113460.0,1.3311429]
[1759240596945,0.02359,113470.0,113460.0,1.3311429]
[1759240597145,0.1116801,113470.0,113460.0,1.3311429]
[1759240597554,0.1116801,113470.0,113460.0,0.4848629]
[1759240597751,0.54432269,113470.0,113460.0,1.3311029]
[1759240597944,0.02359,113470.0,113460.0,1.3311029]
[1759240598147,0.0004,113470.0,113460.0,1.3311029]
[1759240598348,0.0884901,113470.0,113460.0,1.3311029]
[1759240598548,0.0004,113470.0,113460.0,1.3311029]
[1759240599346,0.0004,113470.0,113460.0,2.25183559]
[1759240599545,0.07817199,113480.0,113470.0,0.1240601]
[1759240599750,0.0008,113480.0,113470.0,0.4848601]
[1759240599949,0.00952966,113480.0,113470.0,1.00559279]
[1759240600142,0.0880748,113490.0,113480.0,0.1018123]
[1759240600143,0.60880749,113490.0,113480.0,0.1018123]
[1759240600349,0.54226991,113490.0,113480.0,0.4848523]
[1759240600549,0.09355654,113490.0,113480.0,0.4848523]
[1759240601261,0.07281932,113490.0,113480.0,1.3300523]
[1759240601662,0.07201932,113490.0,113480.0,1.3300523]
[1759240601847,0.0884745,113490.0,113480.0,1.3296923]
[1759240602047,0.0004,113490.0,113480.0,1.3296923]
[1759240602850,0.1111746,113490.0,113480.0,0.4848523]
[1759240603048,0.0004,113490.0,113480.0,0.4848523]
[1759240603248,0.1111746,113490.0,113480.0,0.4848523]
[1759240603550,0.1111746,113490.0,113480.0,1.3291723]
[1759240603760,0.1111746,113490.0,113480.0,0.4848523]
[1759240604056,0.0231,113490.0,113480.0,1.3291723]
[1759240604257,0.0231,113490.0,113480.0,0.4848523]
[1759240604558,0.0004,113490.0,113480.0,1.84994499]
[1759240604859,0.0004,113490.0,113480.0,2.24994499]
[1759240605154,0.06910153,113490.0,113480.0,2.24994499]
[1759240605360,0.0004,113490.0,113480.0,2.24994499]
[1759240605550,0.09702015,113500.0,113490.0,0.1238746]
[1759240605749,0.14125906,113500.0,113490.0,0.1238746]
[1759240606258,0.66199175,113500.0,113490.0,0.0358]
[1759240606454,0.66199175,113500.0,113490.0,0.1238745]
[1759240606955,0.66199175,113500.0,113490.0,0.0358]
[1759240607156,0.1107746,113490.0,113480.0,0.03883]
[1759240607457,0.0880823,113480.0,113470.0,0.4847161]
[1759240607653,0.62551499,113480.0,113470.0,0.4847161]
[1759240608047,0.62551499,113480.0,113470.0,0.03583]
[1759240608251,0.62551499,113480.0,113450.0,0.4626007]
[1759240608252,0.1200201,113470.0,113450.0,0.4626007]
[1759240608453,0.63153059,113460.0,113450.0,0.4847007]
[1759240608955,0.54343269,113470.0,113460.0,0.0880979]
[1759240609158,0.03245879,113470.0,113460.0,0.4846979]
[1759240609557,0.64168158,113470.0,113460.0,0.4846979]
[1759240609761,0.55359148,113470.0,113460.0,0.1238979]
[1759240609978,0.64168158,113470.0,113460.0,0.4846979]
[1759240611455,0.02115879,113470.0,113460.0,0.4866979]
[1759240612059,0.0221696,113470.0,113460.0,0.4846979]
[1759240612663,0.0014,113470.0,113460.0,1.40543059]
[1759240613162,0.001,113470.0,113460.0,1.40543059]
[1759240613463,0.0014,113470.0,113460.0,1.40543059]
[1759240614262,0.0241,113470.0,113460.0,0.4846979]
[1759240614457,0.0894901,113470.0,113460.0,0.4846979]
[1759240614659,0.0894901,113470.0,113460.0,0.3966]
[1759240614660,0.63292279,113470.0,113460.0,0.3966]
[1759240614852,1.39372279,113470.0,113460.0,0.0137]
[1759240615062,0.1107978,113460.0,113450.0,0.0137]
[1759240615364,0.0881056,113450.0,113440.0,1.3061685]
[1759240615562,0.63153829,113450.0,113440.0,0.4847085]
[1759240615865,0.63153589,113460.0,113450.0,0.1239056]
[1759240616161,0.65220179,113460.0,113450.0,0.4847056]
[1759240616758,0.65260179,113460.0,113450.0,0.4847056]
[1759240616961,0.56450399,113460.0,113450.0,0.4847056]
[1759240617258,0.0210713,113460.0,113450.0,0.4847056]
[1759240617458,0.52113269,113460.0,113450.0,0.4847056]
[1759240617654,0.0134,113460.0,113450.0,0.4847056]
[1759240618058,0.013,113460.0,113450.0,0.4847056]
[1759240618253,1.81406539,113470.0,113460.0,0.1017978]
[1759240618458,1.33669962,113470.0,113460.0,0.1017978]
[1759240618657,1.85743231,113470.0,113460.0,0.1017978]
[1759240619360,1.40849961,113470.0,113460.0,0.1238978]
[1759240619561,1.40837961,113470.0,113460.0,0.1238978]
[1759240619765,1.41437961,113470.0,113460.0,0.1238978]
[1759240620073,1.50246961,113470.0,113460.0,0.1238978]
[1759240620364,1.37553692,113470.0,113460.0,0.0137]
[1759240620562,0.1107978,113460.0,113450.0,0.0137]
[1759240620865,0.63853049,113460.0,113450.0,0.0881056]
[1759240621060,0.99933049,113460.0,113450.0,0.0881056]
[1759240621460,0.99233049,113460.0,113450.0,0.0881056]
[1759240621659,1.47481049,113460.0,113450.0,0.4847056]
[1759240621860,0.63153049,113460.0,113450.0,0.4847056]
[1759240622061,1.47481049,113460.0,113450.0,0.4847056]
[1759240622365,1.47469049,113460.0,113450.0,0.4847056]
[1759240622554,1.48169049,113460.0,113450.0,0.4847056]
[1759240622759,0.63853049,113460.0,113450.0,0.4847056]
[1759240622965,1.48161049,113460.0,113450.0,0.1239056]
[1759240623165,1.47861049,113460.0,113450.0,0.0358]
[1759240623358,0.1108056,113450.0,113440.0,0.4847076]
[1759240623559,0.63153829,113450.0,113440.0,0.4847076]
[1759240623857,0.1108134,113440.0,113430.0,0.53192126]
[1759240624058,0.0227,113430.0,113420.0,0.17112606]
[1759240624261,1.38619269,113430.0,113420.0,0.4847228]
[1759240624462,1.38631269,113430.0,113420.0,0.4847228]
[1759240624871,0.54343269,113430.0,113420.0,0.4847228]
[1759240625059,0.54383269,113430.0,113420.0,0.4847228]
[1759240626756,0.54383269,113430.0,113420.0,0.4897228]
[1759240626961,0.63195379,113430.0,113420.0,0.4897228]
[1759240627161,0.54383269,113430.0,113420.0,0.4897228]
[1759240627460,1.39578234,113430.0,113420.0,0.4897228]
[1759240627666,0.0004,113430.0,113420.0,0.8947228]
[1759240628062,0.52073269,113440.0,113430.0,0.1239211]
[1759240628263,0.52153269,113440.0,113430.0,0.4847211]
[1759240628666,1.36441269,113440.0,113430.0,0.4847211]
[1759240628867,0.52153269,113440.0,113430.0,0.4847211]
[1759240629070,1.36433269,113440.0,113430.0,0.4847211]
[1759240629364,0.52153269,113440.0,113430.0,0.4847211]
[1759240629570,1.47478609,113440.0,113430.0,0.4847211]
[1759240629763,1.54583651,113440.0,113430.0,0.4847211]
[1759240629969,1.55478729,113440.0,113430.0,0.1259211]
[1759240630464,2.43631998,113440.0,113430.0,0.0157]
[1759240630672,2.84554998,113440.0,113430.0,0.002]
[1759240630866,0.1108211,113430.0,113420.0,0.1018242]
[1759240631059,0.62755379,113430.0,113420.0,0.1239242]
[1759240631266,0.62755379,113430.0,113420.0,0.1239289]
[1759240631463,1.47003379,113430.0,113420.0,0.1239289]
[1759240631663,1.47003379,113430.0,113420.0,0.1018289]
[1759240631664,0.62755379,113430.0,113420.0,0.1018289]
[1759240631860,0.62755379,113430.0,113420.0,0.4847289]
[1759240632064,0.54343269,113430.0,113420.0,0.4947289]
[1759240632259,0.0227,113430.0,113420.0,0.4947289]
[1759240632466,0.84244,113430.0,113420.0,0.4947289]
[1759240632664,0.02224,113430.0,113420.0,0.4947289]
[1759240632864,0.86508,113430.0,113420.0,0.4947289]
[1759240633060,1.38581269,113430.0,113420.0,0.4947289]
[1759240633263,0.54337269,113430.0,113420.0,0.4947289]
[1759240633469,1.36333269,113430.0,113420.0,0.4847289]
[1759240633666,1.36333269,113430.0,113420.0,0.4877289]
[1759240633871,1.36337269,113430.0,113420.0,0.4877289]
[1759240634066,0.54337269,113430.0,113420.0,0.4877289]
[1759240634263,0.52113269,113430.0,113420.0,0.4877289]
[1759240634464,1.36325269,113430.0,113420.0,0.4877289]
[1759240634670,0.84252,113430.0,113420.0,0.4877289]
[1759240634864,0.0004,113430.0,113420.0,0.4877289]
[1759240636470,1.46457389,113440.0,113430.0,0.0881211]
[1759240636670,0.0808012,113440.0,113430.0,0.4844311]
[1759240637061,0.0800012,113440.0,113430.0,0.4844311]
[1759240637374,1.38529269,113450.0,113440.0,0.1236234]
[1759240637572,0.99187299,113460.0,113450.0,0.1236156]
[1759240637872,1.83411299,113460.0,113450.0,0.1236156]
[1759240638670,1.83411299,113460.0,113450.0,0.01388]
[1759240638868,0.1103534,113440.0,113430.0,0.17082906]
[1759240639066,1.48072007,113440.0,113430.0,0.17082906]
[1759240639265,2.40145276,113440.0,113430.0,0.01388]
[1759240639463,1.03976007,113440.0,113430.0,0.1236312]
[1759240639668,0.95164667,113440.0,113430.0,0.1236312]
[1759240639868,1.88092007,113440.0,113430.0,0.1236312]
[1759240640070,1.88132007,113440.0,113430.0,0.03551]
[1759240640267,1.04016007,113440.0,113430.0,0.1236311]
[1759240640572,1.88140007,113440.0,113430.0,0.1236311]
[1759240641074,1.88140007,113440.0,113430.0,0.1246311]
[1759240641568,2.40213276,113440.0,113430.0,0.0891211]
[1759240641769,2.76293276,113440.0,113430.0,0.001]
[1759240642370,2.76265276,113440.0,113430.0,0.0891211]
[1759240642676,2.24192007,113440.0,113430.0,0.0891211]
[1759240643067,2.24192007,113440.0,113430.0,0.1030011]
[1759240643472,2.76265276,113440.0,113430.0,0.001]
[1759240643875,2.76265276,113440.0,113430.0,0.0891211]
[1759240644269,2.78321186,113440.0,113430.0,0.0891211]
[1759240644470,2.78313186,113440.0,113430.0,0.001]
[1759240645172,0.0881367,113410.0,113400.0,0.31922226]
[1759240645370,1.47162939,113410.0,113400.0,0.272019]
[1759240645570,1.47162939,113410.0,113400.0,0.293649]
[1759240645966,1.54304405,113410.0,113400.0,0.293649]
[1759240646172,1.54304405,113410.0,113400.0,0.272019]
[1759240646377,1.47546999,113410.0,113400.0,0.272019]
[1759240646774,1.47558999,113410.0,113400.0,0.272019]
[1759240646970,0.93405466,113410.0,113400.0,0.293649]
[1759240647181,1.38721329,113410.0,113400.0,0.293649]
[1759240647380,0.18179136,113410.0,113400.0,0.293649]
[1759240647678,1.47534999,113410.0,113400.0,0.293649]
[1759240647979,0.63494999,113410.0,113400.0,0.293649]
[1759240648174,0.63494999,113410.0,113400.0,0.2936544]
[1759240648576,0.64594999,113410.0,113400.0,0.2936544]
[1759240648776,1.47498999,113410.0,113400.0,0.2936544]
[1759240648977,1.48098999,113410.0,113400.0,0.2936544]
[1759240649172,1.48098999,113410.0,113400.0,0.20551]
[1759240649372,0.64094999,113410.0,113400.0,0.2936544]
[1759240649574,0.18779136,113410.0,113400.0,1.0544544]
[1759240649780,0.91717466,113410.0,113400.0,1.0544544]
[1759240649979,0.07741466,113410.0,113400.0,1.55481629]
[1759240650477,0.16595136,113410.0,113400.0,1.10165766]
[1759240650667,0.16595136,113410.0,113400.0,1.01351326]
[1759240650869,0.64158999,113410.0,113400.0,0.61351326]
[1759240651073,0.64158999,113410.0,113400.0,0.20551]
[1759240651582,0.64158999,113410.0,113400.0,0.18388]
[1759240652677,0.64158999,113410.0,113390.0,0.42188326]
[1759240652875,1.40330313,113400.0,113390.0,0.44420326]
[1759240653075,1.40330313,113400.0,113390.0,0.61420326]
[1759240653374,1.40330313,113400.0,113390.0,0.70235546]
[1759240653375,0.56378313,113400.0,113390.0,0.70235546]
[1759240653574,1.40322313,113400.0,113390.0,0.70235546]
[1759240653974,1.40314313,113400.0,113390.0,0.70235546]
[1759240654178,1.40314313,113400.0,113390.0,0.6551522]
[1759240654179,1.40614313,113400.0,113390.0,0.6551522]
[1759240654574,0.02548,113400.0,113390.0,0.6551522]
[1759240654780,0.9529845,113400.0,113390.0,0.6551522]
[1759240654980,0.003,113400.0,113390.0,0.6551522]
[1759240655190,0.84236,113400.0,113390.0,0.6551522]
[1759240655383,0.003,113400.0,113390.0,0.6551522]
[1759240655576,0.9275044,113400.0,113390.0,0.6551522]
[1759240655782,0.02748,113400.0,113390.0,0.6551522]
[1759240656079,0.84436,113400.0,113390.0,0.6551522]
[1759240656285,0.9325044,113400.0,113390.0,0.6551522]
[1759240656883,0.9549844,113400.0,113390.0,0.6551522]
[1759240657280,0.1156244,113400.0,113390.0,0.6551522]
[1759240657487,0.9549844,113400.0,113390.0,0.6551522]
[1759240657691,0.02748,113400.0,113390.0,0.6551522]
[1759240657892,0.005,113400.0,113390.0,0.6551522]
[1759240658092,0.84436,113400.0,113390.0,0.6551522]
[1759240658294,0.9325044,113400.0,113390.0,0.6551522]
[1759240658895,0.005,113400.0,113390.0,0.6551522]
[1759240659091,0.8444,113400.0,113390.0,0.6551522]
[1759240659699,0.9325445,113400.0,113390.0,0.6551522]
[1759240659889,0.8444,113400.0,113390.0,0.6551522]
[1759240660390,0.8444,113400.0,113390.0,0.70235546]
[1759240660700,0.0054,113400.0,113390.0,0.70235546]
[1759240663897,0.0054,113400.0,113390.0,1.55551409]
[1759240664098,0.005,113400.0,113390.0,1.55551409]
[1759240664301,0.0054,113400.0,113390.0,1.55551409]
[1759240664490,0.005,113400.0,113390.0,2.39491409]
[1759240664802,0.0054,113400.0,113390.0,2.39491409]
[1759240665002,0.0004,113400.0,113390.0,2.39491409]
[1759240665192,0.0004,113400.0,113390.0,1.8945522]
[1759240665696,0.07125221,113410.0,113400.0,0.1224044]
[1759240665895,0.0008,113410.0,113400.0,0.5304168]
[1759240666196,0.0008,113420.0,113410.0,0.1223967]
[1759240666399,0.0008,113420.0,113410.0,1.15356773]
[1759240666595,0.75161261,113440.0,113430.0,0.1223811]
[1759240666799,0.48429261,113440.0,113430.0,0.1223811]
[1759240666996,0.87049398,113440.0,113430.0,0.1223811]
[1759240667501,0.87049398,113440.0,113430.0,0.4831811]
[1759240667695,0.03153398,113440.0,113430.0,0.5303935]
[1759240667895,0.00907398,113440.0,113430.0,0.5303935]
[1759240668997,0.00867398,113440.0,113430.0,0.5303935]
[1759240669201,0.0004,113440.0,113430.0,0.5303935]
[1759240669389,0.0324,113440.0,113430.0,0.5303935]
[1759240669903,0.0324,113440.0,113430.0,2.23849983]
[1759240670101,0.032,113440.0,113430.0,0.9460612]
[1759240670296,0.0324,113440.0,113430.0,0.53035016]
[1759240670496,0.05486,113440.0,113430.0,1.76963016]
[1759240670692,0.0324,113440.0,113430.0,1.76963016]
[1759240671398,0.0324,113440.0,113430.0,0.93035016]
[1759240672504,0.0324,113440.0,113430.0,1.76959016]
[1759240672709,0.0324,113440.0,113430.0,1.76955016]
[1759240672897,0.0324,113440.0,113430.0,0.93035016]
[1759240673093,0.0324,113440.0,113430.0,1.76955016]
[1759240674706,0.0324,113440.0,113430.0,0.93035016]
[1759240674901,0.0324,113440.0,113430.0,1.76951016]
[1759240676806,0.0324,113440.0,113430.0,0.93035016]
[1759240677202,0.0324,113440.0,113430.0,1.76947016]
[1759240678802,0.0324,113440.0,113430.0,2.22262879]
[1759240679018,0.07847249,113450.0,113440.0,0.1223734]
[1759240679308,0.02326,113460.0,113450.0,0.1223656]
[1759240679507,0.47641863,113460.0,113450.0,0.4831656]
[1759240679912,0.02326,113460.0,113450.0,0.4831656]
[1759240681100,0.04826,113460.0,113450.0,0.4831656]
[1759240681297,0.03446732,113460.0,113450.0,0.4831656]
[1759240681497,0.025,113460.0,113450.0,2.17536423]
[1759240681703,0.40503574,113490.0,113480.0,0.1223423]
[1759240681905,0.04423574,113490.0,113480.0,0.1223423]
[1759240682105,0.04263574,113490.0,113480.0,0.1223423]
[1759240682300,0.04303574,113490.0,113480.0,0.1223423]
[1759240682608,0.04263574,113490.0,113480.0,0.1223423]
[1759240682808,0.04303574,113490.0,113480.0,0.1223423]
[1759240683008,0.13111024,113490.0,113480.0,0.1223423]